bitfinex/quotes_SOLUSD_20240614
["timestamp","ask_amount","ask_price","bid_price","bid_amount"]
[1718403901493,6.6,142.86,142.84,25.9024]
[1718403901702,6.6,142.86,142.84,7.7704]
[1718403902069,7.7687,142.88,142.84,15.5412]
[1718403902295,6.6,142.86,142.84,25.9024]
[1718403903185,6.6,142.86,142.85,2.5901]
[1718403903390,18.1226,142.92,142.83,0.17]
[1718403903580,18.1226,142.92,142.87,23.3069]
[1718403903581,6.6,142.89,142.87,23.3069]
[1718403903984,6.6,142.9,142.88,2.5895]
[1718403904298,6.6,142.9,142.87,25.8965]
[1718403904974,6.6,142.9,142.87,7.7688]
[1718403905671,9.1892,142.9,142.87,2.5896]
[1718403906072,14.3677,142.9,142.86,27.29785871]
[1718403906273,22.1353,142.9,142.86,27.29785871]
[1718403906574,32.4922,142.9,142.86,9.16915871]
[1718403907019,156.03000964,142.94,142.83,0.51]
[1718403907179,23.3054,142.89,142.85,2.5901]
[1718403907384,14.3683,142.89,142.85,25.9007]
[1718403907689,14.3683,142.89,142.85,25.9005]
[1718403908092,22.1365,142.89,142.85,23.3106]
[1718403908299,22.1365,142.89,142.85,7.77]
[1718403908603,14.3683,142.89,142.86,2.5899]
[1718403909481,14.3683,142.89,142.85,25.9007]
[1718403909680,2.5896,142.88,142.85,7.7699]
[1718403910089,2.5896,142.88,142.85,2.5899]
[1718403910793,2.5896,142.88,142.85,7.7701]
[1718403911194,2.5896,142.88,142.85,2.5899]
[1718403911500,7.7687,142.88,142.85,2.5899]
[1718403911698,0.34,142.93,142.82,0.17]
[1718403912009,2.5899,142.86,142.83,2.5904]
[1718403912998,32.4985,142.87,142.83,7.7713]
[1718403913310,32.4985,142.87,142.83,15.5427]
[1718403914195,14.3696,142.87,142.84,2.5903]
[1718403914700,6.6,142.85,142.82,2.5905]
[1718403914900,9.1901,142.85,142.82,2.5905]
[1718403915513,6.6,142.85,142.82,2.5905]
[1718403915698,9.1901,142.85,142.82,2.5905]
[1718403916006,9.1901,142.85,142.82,7.7718]
[1718403916192,6.6,142.85,142.82,15.5437]
[1718403916404,6.6,142.85,142.83,2.5904]
[1718403916616,2.5896,142.88,142.85,2.5901]
[1718403916826,9.1897,142.87,142.84,2.5901]
[1718403917285,14.3692,142.87,142.84,2.5901]
[1718403917483,6.6,142.87,142.81,6.6]
[1718403917682,6.6,142.87,142.83,2.5904]
[1718403917683,6.6,142.85,142.83,2.5904]
[1718403917905,6.6,142.86,142.84,15.5416]
[1718403918109,6.6,142.86,142.84,2.5903]
[1718403918516,6.6,142.85,142.83,2.5903]
[1718403919231,6.6,142.85,142.82,25.9053]
[1718403919397,6.6,142.85,142.83,2.5904]
[1718403919919,5.1813,142.83,142.78,0.17]
[1718403920223,6.6,142.83,142.81,7.7723]
[1718403920397,6.6,142.82,142.81,7.7723]
[1718403920604,6.6,142.82,142.81,15.545]
[1718403920929,6.6,142.82,142.81,25.9084]
[1718403921121,6.6,142.82,142.81,7.7725]
[1718403922621,6.6,142.82,142.8,23.3182]
[1718403922819,6.6,142.82,142.81,2.5908]
[1718403923117,6.6,142.82,142.8,7.7727]
[1718403923809,2.5904,142.84,142.81,7.7725]
[1718403924009,6.6,142.82,142.81,7.7725]
[1718403924623,6.6,142.82,142.81,2.5908]
[1718403924812,6.6,142.82,142.81,15.545]
[1718403925321,6.6,142.82,142.81,7.7725]
[1718403925618,6.6,142.82,142.81,2.5908]
[1718403926230,6.6,142.82,142.81,7.7725]
[1718403926821,6.6,142.82,142.81,2.5908]
[1718403927007,6.6,142.82,142.81,7.7725]
[1718403927928,6.6,142.82,142.81,2.5908]
[1718403928328,6.6,142.82,142.81,7.7725]
[1718403929231,6.6,142.82,142.81,15.545]
[1718403929439,6.6,142.82,142.78,7.7741]
[1718403929617,6.6,142.79,142.78,7.7739]
[1718403929938,6.6,142.79,142.77,23.3232]
[1718403930112,2.5916,142.77,142.73,2.5921]
[1718403930307,24.7402,142.78,142.73,2.5921]
[1718403930308,6.6,142.74,142.73,25.9223]
[1718403930803,8.6019,142.82,142.78,7.7739]
[1718403931129,107.22875452,142.87,142.74,18.1444]
[1718403931130,6.0113,142.86,142.82,5.1813]
[1718403931330,6.0113,142.86,142.82,15.5438]
[1718403931331,6.6,142.84,142.82,15.5438]
[1718403931532,2.5901,142.85,142.81,25.9073]
[1718403931846,11.1913,142.86,142.81,5.1817]
[1718403932014,6.6,142.83,142.82,2.5906]
[1718403932207,15.4711,142.87,142.79,0.17]
[1718403932411,7.7688,142.88,142.84,2.5901]
[1718403932621,7.7688,142.88,142.84,7.7706]
[1718403932622,6.6,142.87,142.84,7.7706]
[1718403932911,6.6,142.86,142.84,2.5901]
[1718403933732,6.6,142.85,142.82,7.7717]
[1718403933928,6.6,142.84,142.82,7.7719]
[1718403934233,6.6,142.84,142.82,2.5906]
[1718403934754,6.6,142.84,142.82,2.5905]
[1718403935050,6.6,142.84,142.81,25.9076]
[1718403935211,6.6,142.83,142.8,2.5909]
[1718403935407,6.6,142.83,142.79,23.3201]
[1718403935637,6.6,142.81,142.79,15.5471]
[1718403935949,6.6,142.82,142.81,2.5908]
[1718403936504,20.6511,142.86,142.81,23.3176]
[1718403936709,20.6489,142.92,142.87,12.9484]
[1718403936910,20.6489,142.92,142.83,6.6]
[1718403936911,6.6,142.89,142.86,15.539]
[1718403937110,18.0601,142.92,142.88,2.5894]
[1718403937329,6.6,142.9,142.88,7.7685]
[1718403937522,6.6,142.9,142.88,2.5894]
[1718403938135,6.6,142.9,142.87,25.8961]
[1718403938513,6.6,142.9,142.87,7.7688]
[1718403938716,6.6,142.9,142.86,7.7694]
[1718403938717,6.6,142.89,142.86,7.7694]
[1718403938913,6.6,142.89,142.84,23.3118]
[1718403939118,6.6,142.87,142.85,2.5901]
[1718403939424,6.6,142.87,142.85,15.5404]
[1718403939619,6.6,142.88,142.86,2.5899]
[1718403940317,9.1896,142.88,142.84,15.5415]
[1718403940523,6.6,142.87,142.84,15.5415]
[1718403940818,6.6,142.87,142.84,2.5902]
[1718403941139,6.6,142.87,142.84,7.7708]
[1718403941351,6.6,142.87,142.83,18.1324]
[1718403941352,5.1786,142.9,142.85,12.9499]
[1718403941655,6.6,142.88,142.86,2.5898]
[1718403941827,6.6,142.88,142.86,7.7696]
[1718403942347,6.6,142.88,142.86,2.5898]
[1718403943034,6.6,142.88,142.85,23.31]
[1718403943035,6.6,142.88,142.85,2.5899]
[1718403943228,14.3688,142.88,142.84,2.5902]
[1718403943544,9.1897,142.87,142.83,25.9036]
[1718403943731,10.36,142.86,142.78,15.2946]
[1718403943922,6.6,142.83,142.8,23.3191]
[1718403944114,6.6,142.83,142.8,25.9099]
[1718403944314,6.6,142.81,142.79,2.591]
[1718403944528,6.6,142.81,142.79,7.7733]
[1718403944738,6.6,142.81,142.8,7.773]
[1718403945115,6.6,142.81,142.79,7.7735]
[1718403945313,18.0612,142.85,142.81,2.5907]
[1718403945514,6.6,142.82,142.81,15.5447]
[1718403945910,6.6,142.82,142.81,7.7722]
[1718403946548,6.6,142.83,142.81,7.7722]
[1718403946842,6.6,142.83,142.81,2.5907]
[1718403947140,23.2414,142.85,142.81,2.5907]
[1718403947439,6.6,142.83,142.81,7.7723]
[1718403948638,6.6,142.83,142.81,2.5907]
[1718403949245,6.6,142.83,142.8,23.3183]
[1718403949246,9.1904,142.83,142.8,2.5908]
[1718403949554,6.6,142.82,142.8,2.591]
[1718403949723,6.6,142.82,142.8,7.773]
[1718403951244,6.6,142.82,142.8,2.591]
[1718403952949,115.4711,142.85,142.72,15.6363]
[1718403953250,6.6,142.78,142.76,15.5502]
[1718403953461,6.6,142.79,142.76,23.3256]
[1718403953751,6.6,142.79,142.76,25.9172]
[1718403953953,6.6,142.79,142.77,2.5915]
[1718403954654,6.6,142.79,142.77,7.7745]
[1718403954848,6.6,142.79,142.77,15.5492]
[1718403955526,6.6,142.79,142.77,25.9152]
[1718403955947,6.6,142.79,142.78,2.5913]
[1718403956236,6.6,142.79,142.78,25.9136]
[1718403956650,6.6,142.8,142.78,25.9136]
[1718403956850,6.6,142.8,142.78,25.9135]
[1718403957245,6.6,142.8,142.78,7.7739]
[1718403957750,6.6,142.79,142.78,2.5912]
[1718403959449,6.6,142.79,142.76,23.3253]
[1718403959649,6.6,142.78,142.77,2.5915]
[1718403960243,6.6,142.78,142.77,7.7746]
[1718403960433,18.1338,142.83,142.73,6.77]
[1718403960633,2.5905,142.83,142.79,25.9114]
[1718403960847,6.6,142.8,142.79,7.7734]
[1718403961055,6.6,142.8,142.78,25.9126]
[1718403961259,6.6,142.8,142.79,2.5912]
[1718403961758,6.6,142.8,142.78,7.7738]
[1718403962150,7.22833672,142.84,142.8,23.3187]
[1718403962457,7.22833672,142.84,142.81,7.7723]
[1718403962657,7.22833672,142.84,142.81,15.5448]
[1718403962658,6.6,142.84,142.81,15.5448]
[1718403962835,6.6,142.84,142.81,7.7723]
[1718403963034,26.4,142.87,142.79,18.1377]
[1718403963259,6.6,142.82,142.8,9.17358216]
[1718403963443,6.6,142.83,142.8,9.17328216]
[1718403963952,6.6,142.83,142.8,7.7728]
[1718403964152,6.6,142.83,142.8,15.5458]
[1718403964557,6.6,142.83,142.8,2.5909]
[1718403965359,6.6,142.83,142.8,7.7728]
[1718403965843,6.6,142.83,142.8,2.5909]
[1718403966043,9.1904,142.83,142.8,2.5909]
[1718403966351,9.1904,142.83,142.8,2.591]
[1718403966663,9.1904,142.83,142.79,25.9109]
[1718403966845,15.5428,142.83,142.79,7.7732]
[1718403967048,6.6,142.82,142.79,2.591]
[1718403967372,6.6,142.82,142.79,7.7734]
[1718403967873,9.1908,142.81,142.77,2.5915]
[1718403968042,6.6,142.8,142.76,43.3247]
[1718403968241,6.6,142.79,142.76,45.9162]
[1718403968460,6.6,142.79,142.77,2.5915]
[1718403968957,6.6,142.79,142.77,7.7746]
[1718403969163,6.6,142.79,142.77,15.5492]
[1718403970369,6.6,142.79,142.77,25.9155]
[1718403970549,6.6,142.79,142.78,2.5913]
[1718403971052,2.5908,142.82,142.78,25.9136]
[1718403971276,23.3116,142.85,142.79,7.7736]
[1718403971455,6.6,142.82,142.76,26.6]
[1718403971655,6.6,142.82,142.81,2.5908]
[1718403971856,6.6,142.82,142.8,25.9096]
[1718403972065,6.6,142.81,142.79,2.5911]
[1718403972254,6.6,142.8,142.78,23.3214]
[1718403972449,6.6,142.8,142.78,25.9126]
[1718403972675,6.6,142.8,142.79,2.5912]
[1718403973461,6.6,142.8,142.78,25.9126]
[1718403973671,6.6,142.8,142.78,7.7738]
[1718403973973,6.6,142.8,142.78,2.5912]
[1718403974180,6.6,142.8,142.78,2.5913]
[1718403974482,6.6,142.8,142.78,25.9136]
[1718403974691,6.6,142.8,142.79,2.5912]
[1718403974977,15.5435,142.83,142.79,7.7736]
[1718403975166,6.6,142.8,142.79,7.7736]
[1718403976370,6.6,142.8,142.79,2.5912]
[1718403976773,6.6,142.8,142.78,25.9133]
[1718403979583,6.6,142.8,142.79,2.5912]
[1718403981179,6.6,142.8,142.78,25.9133]
[1718403982491,100.34,142.86,142.75,23.1862]
[1718403982492,12.9498,142.86,142.81,23.3169]
[1718403982658,6.6,142.84,142.82,2.5906]
[1718403982865,6.6,142.84,142.82,5.1812]
[1718403983166,6.6,142.84,142.82,2.5905]
[1718403983484,6.6,142.84,142.81,25.9071]
[1718403983669,6.6,142.82,142.77,7.7744]
[1718403983871,6.6,142.81,142.79,2.5911]
[1718403984169,6.6,142.81,142.79,2.5912]
[1718403984369,6.6,142.8,142.78,2.5912]
[1718403984562,10.3623,142.83,142.78,23.3222]
[1718403984563,6.6,142.81,142.78,23.3222]
[1718403984876,6.6,142.81,142.79,15.5471]
[1718403985261,2.5905,142.83,142.8,2.591]
[1718403985490,5.18,142.86,142.82,7.7718]
[1718403985675,6.6,142.84,142.81,2.5907]
[1718403985983,2.5901,142.85,142.81,23.3174]
[1718403986291,52.6322,142.88,142.84,2.5902]
[1718403986582,52.6322,142.88,142.83,23.3138]
[1718403986583,6.6,142.86,142.83,2.5903]
[1718403986788,6.6,142.85,142.82,2.5905]
[1718403986963,7.7692,142.87,142.83,7.7711]
[1718403987167,6.6,142.86,142.83,7.7711]
[1718403987366,9.1901,142.85,142.81,25.9074]
[1718403987670,9.1901,142.85,142.82,2.5906]
[1718403987671,6.6,142.85,142.82,2.5906]
[1718403988169,6.6,142.85,142.82,7.7716]
[1718403988766,7.7709,142.84,142.8,7.7729]
[1718403989089,6.6,142.83,142.8,7.7729]
[1718403989787,6.6,142.83,142.81,2.5908]
[1718403990582,6.6,142.83,142.8,2.5908]
[1718403990782,2.5903,142.84,142.8,7.7728]
[1718403990968,6.6,142.82,142.81,2.5908]
[1718403991172,25.9017,142.85,142.81,2.5908]
[1718403991173,6.6,142.83,142.81,2.5908]
[1718403992984,7.7707,142.85,142.81,2.5908]
[1718403993202,49.7084,142.87,142.78,6.77]
[1718403993502,6.6,142.84,142.83,2.5904]
[1718403993713,6.6,142.84,142.82,7.7715]
[1718403994980,6.6,142.84,142.83,7.7713]
[1718403995186,6.6,142.84,142.83,2.5904]
[1718403995996,6.6,142.84,142.82,25.9058]
[1718403997418,6.6,142.84,142.81,2.5907]
[1718403998076,6.6,142.84,142.81,7.7723]
[1718403998274,6.6,142.84,142.81,15.5448]
[1718403998899,6.6,142.84,142.82,2.5906]
[1718403999099,6.6,142.84,142.81,15.5448]
[1718403999289,6.6,142.84,142.82,2.5906]
[1718403999988,9.1903,142.84,142.8,25.9096]
[1718404000292,6.6,142.82,142.8,7.7728]
[1718404000493,6.6,142.83,142.8,15.5458]
[1718404000819,6.6,142.83,142.8,7.7728]
[1718404001099,7.771,142.84,142.8,7.7728]
[1718404001100,6.6,142.82,142.8,7.7728]
[1718404001286,6.6,142.82,142.8,15.5458]
[1718404001685,6.6,142.82,142.76,6.3194]
[1718404002021,6.6,142.8,142.78,2.5913]
[1718404002598,6.6,142.8,142.78,7.774]
[1718404003191,12.6984,142.8,142.74,6.6]
[1718404003417,12.6984,142.8,142.69,0.8462978]
[1718404003418,6.6,142.75,142.69,7.4462978]
[1718404003698,6.6,142.73,142.71,2.5925]
[1718404003875,10.3671,142.76,142.7,7.7782]
[1718404004082,6.6,142.72,142.69,13.8111978]
[1718404004274,6.6,142.72,142.7,2.5928]
[1718404004983,6.6,142.72,142.7,7.7784]
[1718404005512,6.6,142.72,142.7,2.5928]
[1718404005686,6.6,142.72,142.7,15.5568]
[1718404006183,18.1441,142.75,142.7,15.5568]
[1718404006383,6.6,142.72,142.7,15.5568]
[1718404006979,6.6,142.72,142.7,7.7783]
[1718404007181,6.6,142.72,142.7,15.5567]
[1718404007380,6.6,142.72,142.7,25.9278]
[1718404007807,6.6,142.72,142.7,18.1494]
[1718404008100,6.6,142.72,142.7,25.9279]
[1718404008687,6.6,142.73,142.7,25.9279]
[1718404008986,6.6,142.73,142.7,7.7781]
[1718404009185,23.3262,142.76,142.71,15.5556]
[1718404009388,6.6,142.73,142.7,7.7781]
[1718404009596,6.6,142.73,142.7,15.5566]
[1718404010600,7.7759,142.75,142.71,2.5926]
[1718404010782,6.6,142.73,142.7,25.9279]
[1718404010984,6.6,142.73,142.71,2.5926]
[1718404011406,6.6,142.73,142.7,23.3352]
[1718404011610,6.6,142.73,142.7,25.9278]
[1718404012308,7.7759,142.75,142.71,2.5926]
[1718404012510,6.6,142.73,142.7,25.9277]
[1718404012714,6.6,142.73,142.71,2.5926]
[1718404013011,6.6,142.73,142.7,25.9277]
[1718404013589,6.6,142.73,142.71,2.5926]
[1718404014311,6.6,142.73,142.7,23.3351]
[1718404014501,9.1923,142.73,142.69,3.4391978]
[1718404014699,6.6,142.72,142.69,0.8462978]
[1718404014910,6.6,142.72,142.69,3.4392978]
[1718404015496,6.6,142.72,142.69,8.6252978]
[1718404015692,6.6,142.72,142.69,0.8462978]
[1718404015891,6.6,142.7,142.69,0.8462978]
[1718404016415,6.6,142.7,142.69,3.4392978]
[1718404016596,6.6,142.7,142.69,0.8462978]
[1718404016796,6.6,142.71,142.69,3.4392978]
[1718404016998,18.1456,142.74,142.69,0.8462978]
[1718404016999,6.6,142.7,142.69,0.8462978]
[1718404020825,14.3785,142.7,142.69,0.8462978]
[1718404021114,32.5284,142.7,142.69,0.8462978]
[1718404021816,6.6,142.7,142.69,0.8462978]
[1718404022621,9.1928,142.7,142.69,0.8462978]
[1718404023621,33.0384,142.7,142.69,0.8462978]
[1718404023826,9.1928,142.7,142.69,0.8462978]
[1718404024004,6.6,142.7,142.69,0.8462978]
[1718404024199,9.1928,142.7,142.69,0.8462978]
[1718404024402,6.6,142.7,142.69,0.8462978]
[1718404024607,22.157,142.7,142.69,0.8462978]
[1718404025909,32.5284,142.7,142.69,0.8462978]
[1718404026221,24.7499,142.7,142.69,0.8462978]
[1718404026402,32.5284,142.7,142.69,0.8462978]
[1718404027300,7.777,142.73,142.69,3.4391978]
[1718404027618,6.6,142.72,142.69,8.6251978]
[1718404027806,9.1923,142.73,142.69,16.4041978]
[1718404028009,6.6,142.72,142.69,16.4041978]
[1718404028217,6.6,142.72,142.69,8.6251978]
[1718404028725,33.52226875,142.76,142.72,2.5924]
[1718404028934,6.6,142.75,142.72,7.7773]
[1718404029113,6.6,142.75,142.72,2.5924]
[1718404029320,9.1919,142.75,142.72,2.5924]
[1718404029512,9.1919,142.75,142.71,25.9261]
[1718404029711,9.1919,142.75,142.71,23.3336]
[1718404029954,23.3246,142.77,142.73,2.5922]
[1718404030235,6.0033,142.81,142.73,6.6]
[1718404030526,6.6,142.76,142.73,2.5922]
[1718404030736,6.6,142.75,142.72,23.5981]
[1718404030908,9.1919,142.75,142.72,15.821]
[1718404031108,6.6,142.75,142.72,23.5982]
[1718404031313,6.6,142.76,142.73,2.5922]
[1718404031534,7.7747,142.77,142.73,25.9225]
[1718404031740,14.3752,142.76,142.72,39.1524]
[1718404032044,22.1504,142.76,142.72,23.598]
[1718404032341,14.3752,142.76,142.72,31.3754]
[1718404032717,6.6,142.76,142.73,2.5922]
[1718404033022,25.9129,142.79,142.75,2.5918]
[1718404033234,6.6,142.78,142.75,25.9188]
[1718404033443,2.5913,142.79,142.75,25.9188]
[1718404033444,7.7737,142.79,142.75,25.9188]
[1718404033633,7.7737,142.79,142.72,22.421]
[1718404033634,2.591,142.8,142.77,2.5915]
[1718404033812,9.191,142.8,142.77,2.5915]
[1718404034011,6.6,142.79,142.76,25.9169]
[1718404034429,6.6,142.79,142.77,2.5915]
[1718404034631,6.6,142.79,142.76,23.3247]
[1718404034839,6.6,142.79,142.76,25.9162]
[1718404035047,9.1912,142.79,142.76,2.5915]
[1718404035248,6.6,142.79,142.76,7.775]
[1718404035538,25.9106,142.8,142.77,2.5914]
[1718404035539,2.591,142.8,142.77,2.5914]
[1718404035745,14.3731,142.8,142.76,7.7748]
[1718404035914,9.1912,142.79,142.76,2.5917]
[1718404036119,9.1912,142.79,142.75,23.3265]
[1718404036317,9.1912,142.79,142.76,2.5917]
[1718404036724,6.6,142.79,142.76,2.5917]
[1718404037663,5.1819,142.81,142.76,10.3664]
[1718404037947,9.1913,142.79,142.76,2.5917]
[1718404038744,9.1913,142.79,142.75,23.3267]
[1718404038745,22.1474,142.79,142.75,7.7755]
[1718404038964,2.5913,142.79,142.76,2.5917]
[1718404039247,6.6,142.78,142.76,7.7752]
[1718404039658,2.5915,142.78,142.74,7.7762]
[1718404039967,6.6,142.76,142.74,7.7762]
[1718404040143,6.6,142.76,142.75,2.5919]
[1718404040338,2.5912,142.79,142.75,23.3266]
[1718404040538,25.9094,142.81,142.77,7.7746]
[1718404040752,6.6,142.79,142.77,25.9151]
[1718404041046,6.6,142.79,142.77,7.7745]
[1718404041533,6.6,142.79,142.77,2.5914]
[1718404041728,6.6,142.79,142.76,25.9164]
[1718404041929,6.6,142.78,142.75,25.9182]
[1718404042145,6.6,142.78,142.76,2.5916]
[1718404042356,6.6,142.79,142.77,2.5914]
[1718404042557,6.6,142.79,142.76,7.7749]
[1718404042729,6.6,142.78,142.76,2.5917]
[1718404043142,6.6,142.78,142.76,7.7752]
[1718404043341,5.1839,142.75,142.68,15.821]
[1718404043551,6.6,142.75,142.73,7.7766]
[1718404043734,6.6,142.74,142.72,23.3313]
[1718404043948,6.6,142.74,142.73,7.7769]
[1718404044164,5.183,142.78,142.74,2.5921]
[1718404044332,9.1916,142.77,142.73,5.1845]
[1718404044532,11.7837,142.76,142.71,18.148]
[1718404044755,6.6,142.74,142.71,2.5926]
[1718404044947,6.6,142.74,142.71,7.7779]
[1718404045340,6.6,142.74,142.71,25.9264]
[1718404045540,6.6,142.74,142.71,25.9263]
[1718404045842,6.6,142.74,142.71,7.7778]
[1718404046453,6.6,142.74,142.71,15.5557]
[1718404047262,6.6,142.74,142.71,25.9263]
[1718404047485,6.6,142.72,142.69,3.4391978]
[1718404047681,6.6,142.7,142.69,0.8462978]
[1718404047961,14.3785,142.7,142.69,0.8462978]
[1718404048342,9.1928,142.7,142.69,0.8462978]
[1718404048793,29.9356,142.7,142.69,0.8462978]
[1718404048944,7.7785,142.7,142.69,0.8462978]
[1718404049144,23.3331,142.72,142.69,0.8462978]
[1718404049350,2.5927,142.71,142.69,0.8462978]
[1718404050077,7.7777,142.72,142.69,0.8462978]
[1718404050246,15.5551,142.72,142.69,0.8462978]
[1718404051063,2.5927,142.71,142.69,0.8462978]
[1718404051361,23.3315,142.73,142.69,0.8462978]
[1718404051580,6.6,142.71,142.69,0.8462978]
[1718404051882,6.6,142.71,142.69,3.4392978]
[1718404053858,6.6,142.71,142.69,8.6252978]
[1718404054187,6.6,142.72,142.7,2.5927]
[1718404054360,6.6,142.72,142.69,26.7754978]
[1718404054886,9.1924,142.72,142.69,8.6248978]
[1718404055187,9.1924,142.72,142.69,3.4390978]
[1718404055566,6.6,142.72,142.69,3.4390978]
[1718404055782,9.1924,142.72,142.69,3.4390978]
[1718404055979,6.6,142.72,142.69,26.7759978]
[1718404056175,6.6,142.72,142.7,2.5928]
[1718404056478,6.6,142.72,142.69,24.1830978]
[1718404056778,6.6,142.72,142.7,2.5928]
[1718404058585,6.6,142.72,142.69,26.7756978]
[1718404059285,9.1924,142.72,142.69,8.6248978]
[1718404059581,9.1924,142.72,142.69,0.8462978]
[1718404059582,5.1852,142.72,142.69,0.8462978]
[1718404059881,6.6,142.7,142.69,0.8462978]
[1718404060289,6.6,142.7,142.69,3.4392978]
[1718404060581,7.7776,142.72,142.69,0.8462978]
[1718404060582,9.1927,142.71,142.69,0.8462978]
[1718404060984,6.6,142.7,142.69,0.8462978]
[1718404062070,9.1928,142.7,142.69,0.8462978]
[1718404062382,14.3785,142.7,142.69,0.8462978]
[1718404063083,6.6,142.7,142.69,0.8462978]
[1718404063476,7.7781,142.71,142.69,0.8462978]
[1718404063900,25.9256,142.72,142.69,0.8462978]
[1718404064263,2.5927,142.71,142.69,0.8462978]
[1718404064456,12.9633,142.71,142.69,0.8462978]
[1718404064688,25.9271,142.71,142.69,0.8462978]
[1718404065003,2.5928,142.7,142.69,0.8462978]
[1718404065187,2.5927,142.71,142.69,0.8462978]
[1718404066761,7.7776,142.72,142.69,3.4392978]
[1718404067065,6.6,142.71,142.69,0.8462978]
[1718404067584,6.6,142.71,142.69,8.6251978]
[1718404067795,6.6,142.71,142.69,3.4391978]
[1718404068194,6.6,142.71,142.69,0.8462978]
[1718404068515,14.3781,142.71,142.69,0.8462978]
[1718404068669,6.6,142.71,142.69,0.8462978]
[1718404068868,6.6,142.71,142.69,3.4392978]
[1718404069287,6.6,142.71,142.69,0.8462978]
[1718404069589,6.6,142.72,142.69,18.9968978]
[1718404069886,6.6,142.73,142.7,7.7781]
[1718404070196,6.6,142.73,142.7,25.928]
[1718404070383,6.6,142.72,142.71,2.5926]
[1718404070702,5.1843,142.74,142.7,2.5926]
[1718404071003,14.3765,142.74,142.7,15.5567]
[1718404071383,6.6,142.73,142.7,7.7782]
[1718404071594,6.6,142.73,142.69,18.9967978]
[1718404071595,7.7761,142.75,142.69,0.8462978]
[1718404071893,9.1919,142.75,142.72,2.5924]
[1718404072073,6.6,142.75,142.72,2.5924]
[1718404072271,6.6,142.75,142.72,15.5546]
[1718404072470,6.6,142.75,142.73,2.5922]
[1718404072773,6.6,142.75,142.72,23.332]
[1718404072976,6.6,142.76,142.73,7.7767]
[1718404073381,9.1917,142.76,142.73,7.7767]
[1718404073589,2.5916,142.77,142.74,2.592]
[1718404073790,30.54791286,142.79,142.75,2.5918]
[1718404074101,6.6,142.77,142.74,7.776]
[1718404074470,7.7753,142.76,142.72,32.5241]
[1718404074709,22.1496,142.77,142.73,15.5534]
[1718404074899,9.1918,142.76,142.73,2.5922]
[1718404076188,9.1918,142.76,142.73,7.7768]
[1718404076592,6.6,142.76,142.74,2.5921]
[1718404076974,6.6,142.76,142.73,25.9226]
[1718404077203,9.1918,142.76,142.73,7.7767]
[1718404077409,2.592,142.75,142.72,2.5923]
[1718404077699,6.6,142.74,142.72,7.7772]
[1718404078397,6.6,142.74,142.72,5.1849]
[1718404078603,6.6,142.74,142.72,2.5923]
[1718404079399,6.6,142.73,142.71,25.9254]
[1718404079808,6.6,142.72,142.71,2.5926]
[1718404080098,6.6,142.72,142.71,15.5559]
[1718404080404,6.6,142.72,142.7,7.7782]
[1718404080405,7.22641286,142.79,142.73,18.1455]